fUST/lending_fUST_20250719
["ID","MTS","AMOUNT","RATE_DAILY","PERIOD"]
[373199676,1752903054563,-151.0,0.00017808,2]
[373199677,1752903054572,-1505.02,0.00017808,2]
[373199678,1752903054582,-460.0,0.00017808,2]
[373199679,1752903054591,-460.0,0.00017808,2]
[373199680,1752903054601,-460.0,0.00017808,2]
[373199681,1752903054610,-151.0,0.00017808,2]
[373199682,1752903054619,-151.0,0.00017808,2]
[373199683,1752903054628,-151.0,0.00017808,2]
[373199684,1752903054638,-460.0,0.00017808,2]
[373199685,1752903054649,-482.5971525,0.00017808,2]
[373199686,1752903054658,-460.0,0.00017808,2]
[373199687,1752903054668,-460.0,0.00017808,2]
[373199688,1752903054677,-151.0,0.00017808,2]
[373199689,1752903054687,-460.0,0.00017808,2]
[373199690,1752903054696,-410.668745,0.00017808,2]
[373199691,1752903054705,-154.923576,0.00017808,2]
[373199692,1752903054715,-410.668745,0.00017808,2]
[373199693,1752903054724,-151.0,0.00017808,2]
[373199694,1752903054734,-460.0,0.00017808,2]
[373199695,1752903054743,-460.0,0.00017808,2]
[373199696,1752903054753,-460.0,0.00017808,2]
[373199697,1752903054763,-1442.04,0.00017808,2]
[373199698,1752903054772,-428.975799,0.00017808,2]
[373199699,1752903054782,-460.0,0.00017808,2]
[373199700,1752903054792,-428.975799,0.00017808,2]
[373199701,1752903054801,-584.9,0.00017808,2]
[373199702,1752903054811,-633.79,0.00017808,2]
[373199703,1752903054820,-555.06778879,0.00017808,2]
[373199704,1752903054830,-469.11777371,0.00017808,2]
[373199705,1752903054840,-460.0,0.00017808,2]
[373199706,1752903054850,-460.0,0.00017808,2]
[373199707,1752903054859,-151.0,0.00017808,2]
[373199708,1752903054869,-2208.01,0.00017808,2]
[373199709,1752903054878,-460.0,0.00017808,2]
[373199710,1752903054888,-296.02191902,0.00017808,2]
[373199711,1752903054898,-151.0,0.00017808,2]
[373199712,1752903054908,-2144.38,0.00017808,2]
[373199713,1752903054917,-228.289233,0.00017808,2]
[373199714,1752903054927,-228.289233,0.00017808,2]
[373199715,1752903054938,-152.719308,0.00017808,2]
[373199716,1752903054947,-460.0,0.00017808,2]
[373199717,1752903054957,-460.0,0.00017808,2]
[373199718,1752903054967,-151.0,0.00017808,2]
[373199719,1752903054977,-460.0,0.00017808,2]
[373199720,1752903054986,-460.0,0.00017808,2]
[373199721,1752903054996,-460.0,0.00017808,2]
[373199722,1752903055006,-151.0,0.00017808,2]
[373199723,1752903055015,-782.71,0.00017808,2]
[373199724,1752903055025,-151.735129,0.00017808,2]
[373199725,1752903055035,-1171.09,0.00017808,2]
[373199726,1752903055045,-460.0,0.00017808,2]
[373199727,1752903055055,-460.0,0.00017808,2]
[373199728,1752903055066,-1364.49,0.00017808,2]
[373199729,1752903055077,-460.0,0.00017808,2]
[373199730,1752903055087,-461.87,0.00017808,2]
[373199731,1752903055097,-460.0,0.00017808,2]
[373199732,1752903055107,-583.74,0.00017808,2]
[373199733,1752903055116,-460.0,0.00017808,2]
[373199734,1752903055126,-460.0,0.00017808,2]
[373199735,1752903055135,-460.0,0.00017808,2]
[373199736,1752903055144,-460.0,0.00017808,2]
[373199737,1752903055154,-759.08,0.00017808,2]
[373199738,1752903055164,-1623.5,0.00017808,2]
[373199739,1752903055173,-460.0,0.00017808,2]
[373199740,1752903055183,-151.0,0.00017808,2]
[373199741,1752903055192,-460.0,0.00017808,2]
[373199742,1752903055201,-460.0,0.00017808,2]
[373199743,1752903055211,-466.86147756,0.00017808,2]
[373199744,1752903055220,-460.0,0.00017808,2]
[373199745,1752903055230,-309.301731,0.00017808,2]
[373199746,1752903055239,-460.0,0.00017808,2]
[373199747,1752903055248,-309.301731,0.00017808,2]
[373199748,1752903055258,-460.0,0.00017808,2]
[373199749,1752903055267,-460.0,0.00017808,2]
[373199750,1752903055277,-491.03,0.00017808,2]
[373199751,1752903055286,-460.0,0.00017808,2]
[373199752,1752903055295,-525.35,0.00017808,2]
[373199753,1752903055305,-253.751263,0.00017808,2]
[373199754,1752903055314,-473.37,0.00017808,2]
[373199755,1752903055324,-253.751263,0.00017808,2]
[373199756,1752903055333,-460.0,0.00017808,2]
[373199757,1752903055343,-460.0,0.00017808,2]
[373199758,1752903055352,-2274.07,0.00017808,2]
[373199759,1752903055361,-460.0,0.00017808,2]
[373199760,1752903055371,-460.0,0.00017808,2]
[373199761,1752903055380,-460.0,0.00017808,2]
[373199762,1752903055389,-1301.23,0.00017808,2]
[373199763,1752903055401,-460.0,0.00017808,2]
[373199764,1752903055410,-3822.72,0.00017808,2]
[373199765,1752903055421,-151.0,0.00017808,2]
[373199766,1752903055430,-490.7042202,0.00017808,2]
[373199767,1752903055440,-466.92045079,0.00017808,2]
[373199768,1752903055450,-460.0,0.00017808,2]
[373199769,1752903055460,-460.0,0.00017808,2]
[373199770,1752903055469,-460.0,0.00017808,2]
[373199771,1752903055479,-460.0,0.00017808,2]
[373199772,1752903055488,-569.23,0.00017808,2]
[373199773,1752903055498,-460.0,0.00017808,2]
[373199774,1752903055507,-460.0,0.00017808,2]
[373199775,1752903055516,-460.0,0.00017808,2]
[373199776,1752903055526,-460.0,0.00017808,2]
[373199777,1752903055536,-1086.82,0.00017808,2]
[373199778,1752903055545,-460.0,0.00017808,2]
[373199779,1752903055554,-460.0,0.00017808,2]
[373199780,1752903055563,-906.52,0.00017808,2]
[373199781,1752903055573,-178.585793,0.00017808,2]
[373199782,1752903055582,-460.0,0.00017808,2]
[373199783,1752903055591,-460.0,0.00017808,2]
[373199784,1752903055601,-178.585793,0.00017808,2]
[373199785,1752903055611,-460.0,0.00017808,2]
[373199786,1752903055620,-460.0,0.00017808,2]
[373199787,1752903055630,-460.0,0.00017808,2]
[373199788,1752903055640,-3126.57,0.00017808,2]
[373199789,1752903055650,-160.0,0.00017833,2]
[373199790,1752903055660,-466.0,0.00017845,2]
[373199791,1752903055669,-420.0,0.00017855,2]
[373199792,1752903055679,-1500.0,0.00017868,2]
[373199793,1752903055689,-505.7834431,0.00017868,2]
[373199794,1752903055699,-198.0,0.0001788,2]
[373199795,1752903055710,-500.0,0.0001788,2]
[373199796,1752903055719,-500.0,0.0001788,2]
[373199797,1752903055728,-4890.36116379,0.000179,2]
[373199798,1752903055738,-182.04499252,0.00018,2]
[373199799,1752903055748,-460.0,0.00018082,2]
[373199800,1752903055757,-460.0,0.00018082,2]
[373199801,1752903055766,-460.0,0.00018082,2]
[373199802,1752903055775,-460.0,0.00018082,2]
[373199803,1752903055875,-460.0,0.00018082,2]
[373199804,1752903055884,-542.63791258,0.00018082,2]
[373199805,1752903055894,-460.0,0.00018082,2]
[373199806,1752903055906,-460.0,0.00018082,2]
[373199807,1752903055916,-460.0,0.00018082,2]
[373199808,1752903055926,-460.0,0.00018082,2]
[373199809,1752903055935,-460.0,0.00018082,2]
[373199810,1752903055944,-1074.17,0.00018082,2]
[373199811,1752903055954,-4435.91,0.00018082,2]
[373199812,1752903055963,-151.0,0.00018082,2]
[373199813,1752903055972,-460.0,0.00018082,2]
[373199814,1752903055982,-460.0,0.00018082,2]
[373199815,1752903055991,-460.0,0.00018082,2]
[373199816,1752903056000,-460.0,0.00018082,2]
[373199817,1752903056010,-460.0,0.00018082,2]
[373199818,1752903056019,-151.0,0.00018082,2]
[373199819,1752903056029,-460.0,0.00018082,2]
[373199820,1752903056038,-460.0,0.00018082,2]
[373199821,1752903056048,-151.0,0.00018082,2]
[373199822,1752903056057,-163.66966262,0.00018082,2]
[373199823,1752903056067,-460.0,0.00018082,2]
[373199824,1752903056077,-460.0,0.00018082,2]
[373199825,1752903056086,-460.0,0.00018082,2]
[373199826,1752903056095,-167.92809041,0.00018082,2]
[373199827,1752903056105,-1978.9,0.00018082,2]
[373199828,1752903056115,-460.0,0.00018082,2]
[373199829,1752903056124,-460.0,0.00018082,2]
[373199830,1752903056134,-460.0,0.00018082,2]
[373199831,1752903056143,-1505.02,0.00018082,2]
[373199832,1752903056156,-460.0,0.00018082,2]
[373199833,1752903056165,-460.0,0.00018082,2]
[373199834,1752903056175,-460.0,0.00018082,2]
[373199835,1752903056184,-460.0,0.00018082,2]
[373199836,1752903056195,-460.0,0.00018082,2]
[373199837,1752903056206,-460.0,0.00018082,2]
[373199838,1752903056217,-460.0,0.00018082,2]
[373199839,1752903056228,-460.0,0.00018082,2]
[373199840,1752903056238,-1442.04,0.00018082,2]
[373199841,1752903056248,-460.0,0.00018082,2]
[373199842,1752903056258,-584.9,0.00018082,2]
[373199843,1752903056268,-633.79,0.00018082,2]
[373199844,1752903056278,-460.0,0.00018082,2]
[373199845,1752903056287,-2208.01,0.00018082,2]
[373199846,1752903056297,-460.0,0.00018082,2]
[373199847,1752903056307,-2144.38,0.00018082,2]
[373199848,1752903056316,-460.0,0.00018082,2]
[373199849,1752903056326,-460.0,0.00018082,2]
[373199850,1752903056336,-492.98263643,0.00018082,2]
[373199851,1752903056346,-460.0,0.00018082,2]
[373199852,1752903056357,-460.0,0.00018082,2]
[373199853,1752903056372,-782.71,0.00018082,2]
[373199854,1752903056382,-1171.09,0.00018082,2]
[373199855,1752903056392,-460.0,0.00018082,2]
[373199856,1752903056405,-1364.49,0.00018082,2]
[373199857,1752903056416,-460.0,0.00018082,2]
[373199858,1752903056427,-461.87,0.00018082,2]
[373199859,1752903056437,-583.74,0.00018082,2]
[373199860,1752903056450,-460.0,0.00018082,2]
[373199861,1752903056461,-460.0,0.00018082,2]
[373199862,1752903056474,-460.0,0.00018082,2]
[373199863,1752903056486,-460.0,0.00018082,2]
[373199864,1752903056497,-759.08,0.00018082,2]
[373199865,1752903056507,-1623.5,0.00018082,2]
[373199866,1752903056517,-460.0,0.00018082,2]
[373199867,1752903056529,-460.0,0.00018082,2]
[373199868,1752903056540,-460.0,0.00018082,2]
[373199869,1752903056550,-460.0,0.00018082,2]
[373199870,1752903056560,-460.0,0.00018082,2]
[373199871,1752903056570,-460.0,0.00018082,2]
[373199872,1752903056579,-607.51956945,0.00018082,2]
[373199873,1752903056590,-491.03,0.00018082,2]
[373199874,1752903056603,-460.0,0.00018082,2]
[373199875,1752903056613,-525.35,0.00018082,2]
[373199876,1752903056625,-473.37,0.00018082,2]
[373199877,1752903056637,-472.3745634,0.00018082,2]
[373199878,1752903056648,-2274.07,0.00018082,2]
[373199879,1752903056658,-186.28711714,0.00018082,2]
[373199880,1752903056668,-460.0,0.00018082,2]
[373199881,1752903056678,-460.0,0.00018082,2]
[373199882,1752903056687,-1301.23,0.00018082,2]
[373199883,1752903056697,-460.0,0.00018082,2]
[373199884,1752903056707,-3822.72,0.00018082,2]
[373199885,1752903056717,-460.0,0.00018082,2]
[373199886,1752903056728,-460.0,0.00018082,2]
[373199887,1752903056739,-460.0,0.00018082,2]
[373199888,1752903056751,-569.23,0.00018082,2]
[373199889,1752903056761,-460.0,0.00018082,2]
[373199890,1752903056770,-460.0,0.00018082,2]
[373199891,1752903056779,-460.0,0.00018082,2]
[373199892,1752903056788,-1086.82,0.00018082,2]
[373199893,1752903056798,-460.0,0.00018082,2]
[373199894,1752903056807,-460.0,0.00018082,2]
[373199895,1752903056816,-906.52,0.00018082,2]
[373199896,1752903056826,-460.0,0.00018082,2]
[373199897,1752903056835,-460.0,0.00018082,2]
[373199898,1752903056844,-460.0,0.00018082,2]
[373199899,1752903056853,-460.0,0.00018082,2]
[373199900,1752903056863,-460.0,0.00018082,2]
[373199901,1752903056873,-3126.57,0.00018082,2]
[373199902,1752903056882,-2737.92616185,0.000181,2]
[373199903,1752903056892,-4729.31410233,0.000181,2]
[373199904,1752903056915,-151.0,0.00018107,2]
[373199905,1752903056925,-151.0,0.00018107,2]
[373199906,1752903056937,-151.0,0.00018107,2]
[373199907,1752903056947,-151.0,0.00018107,2]
[373199908,1752903056958,-151.0,0.00018107,2]
[373199909,1752903056969,-4890.36116353,0.00018141,2]
[373199910,1752903056979,-182.52807795,0.00018154,2]
[373199911,1752903056989,-500.0,0.00018154,2]
[373199912,1752903056998,-476.34170116,0.00018221,2]
[373199913,1752903057008,-230.94145789,0.00018221,2]
[373199914,1752903057020,-12612.80205064,0.00018221,2]
[373199915,1752903057031,-160.0,0.00018221,2]
[373199916,1752903057042,-160.0,0.00018221,2]
[373199917,1752903057053,-525.83049785,0.00018221,2]
[373199918,1752903057063,-160.0,0.00018221,2]
[373199919,1752903057073,-215.67360783,0.00018221,2]
[373199920,1752903057082,-839.454303,0.00018221,2]
[373199921,1752903057091,-160.0,0.00018221,2]
[373199922,1752903057101,-214.52603969,0.00018221,2]
[373199923,1752903057110,-151.0,0.00018221,2]
[373199924,1752903057120,-151.0,0.00018221,2]
[373199925,1752903057129,-151.0,0.00018221,2]
[373199926,1752903057139,-160.0,0.00018221,2]
[373199927,1752903057148,-160.0,0.00018221,2]
[373199928,1752903057158,-160.0,0.00018221,2]
[373199929,1752903057167,-160.0,0.00018221,2]
[373199930,1752903057176,-460.0,0.00018356,2]
[373199931,1752903057186,-460.0,0.00018356,2]
[373199932,1752903057198,-460.0,0.00018356,2]
[373199933,1752903057208,-460.0,0.00018356,2]
[373199934,1752903057218,-460.0,0.00018356,2]
[373199935,1752903057228,-460.0,0.00018356,2]
[373199936,1752903057238,-460.0,0.00018356,2]
[373199937,1752903057248,-460.0,0.00018356,2]
[373199938,1752903057257,-1074.17,0.00018356,2]
[373199939,1752903057267,-4435.91,0.00018356,2]
[373199940,1752903057276,-460.0,0.00018356,2]
[373199941,1752903057286,-460.0,0.00018356,2]
[373199942,1752903057295,-460.0,0.00018356,2]
[373199943,1752903057305,-460.0,0.00018356,2]
[373199944,1752903057315,-460.0,0.00018356,2]
[373199945,1752903057326,-460.0,0.00018356,2]
[373199946,1752903057336,-460.0,0.00018356,2]
[373199947,1752903057346,-460.0,0.00018356,2]
[373199948,1752903057356,-460.0,0.00018356,2]
[373199949,1752903057367,-1978.9,0.00018356,2]
[373199950,1752903057379,-469.19571151,0.00018356,2]
[373199951,1752903057389,-460.0,0.00018356,2]
[373199952,1752903057399,-460.0,0.00018356,2]
[373199953,1752903057409,-1505.02,0.00018356,2]
[373199954,1752903057421,-460.0,0.00018356,2]
[373199955,1752903057431,-460.0,0.00018356,2]
[373199956,1752903057440,-460.0,0.00018356,2]
[373199957,1752903057451,-460.0,0.00018356,2]
[373199958,1752903057463,-460.0,0.00018356,2]
[373199959,1752903057473,-460.0,0.00018356,2]
[373199960,1752903057485,-460.0,0.00018356,2]
[373199961,1752903057494,-460.0,0.00018356,2]
[373199962,1752903057504,-1442.04,0.00018356,2]
[373199963,1752903057514,-460.0,0.00018356,2]
[373199964,1752903057523,-584.9,0.00018356,2]
[373199965,1752903057533,-633.79,0.00018356,2]
[373199966,1752903057542,-460.0,0.00018356,2]
[373199967,1752903057551,-453.3679855,0.00018356,2]
[373199968,1752903057562,-2208.01,0.00018356,2]
[373199969,1752903057572,-2144.38,0.00018356,2]
[373199970,1752903057581,-460.0,0.00018356,2]
[373199971,1752903057590,-460.0,0.00018356,2]
[373199972,1752903057599,-460.0,0.00018356,2]
[373199973,1752903057609,-782.71,0.00018356,2]
[373199974,1752903057619,-1171.09,0.00018356,2]
[373199975,1752903057628,-460.0,0.00018356,2]
[373199976,1752903057637,-1364.49,0.00018356,2]
[373199977,1752903057646,-461.87,0.00018356,2]
[373199978,1752903057658,-583.74,0.00018356,2]
[373199979,1752903057667,-460.0,0.00018356,2]
[373199980,1752903057676,-460.0,0.00018356,2]
[373199981,1752903057686,-460.0,0.00018356,2]
[373199982,1752903057695,-460.0,0.00018356,2]
[373199983,1752903057705,-759.08,0.00018356,2]
[373199984,1752903057714,-1623.5,0.00018356,2]
[373199985,1752903057724,-460.0,0.00018356,2]
[373199986,1752903057811,-460.0,0.00018356,2]
[373199987,1752903057829,-460.0,0.00018356,2]
[373199988,1752903057841,-460.0,0.00018356,2]
[373199989,1752903057852,-460.0,0.00018356,2]
[373199990,1752903057863,-460.0,0.00018356,2]
[373199991,1752903057873,-491.03,0.00018356,2]
[373199992,1752903057883,-460.0,0.00018356,2]
[373199993,1752903057893,-525.35,0.00018356,2]
[373199994,1752903057906,-473.37,0.00018356,2]
[373199995,1752903057915,-2274.07,0.00018356,2]
[373199996,1752903057924,-460.0,0.00018356,2]
[373199997,1752903057935,-460.0,0.00018356,2]
[373199998,1752903057946,-1301.23,0.00018356,2]
[373199999,1752903057955,-460.0,0.00018356,2]
[373200000,1752903057964,-3822.72,0.00018356,2]
[373200001,1752903057975,-460.0,0.00018356,2]
[373200002,1752903057985,-418.18023803,0.00018356,2]
[373200003,1752903057994,-460.0,0.00018356,2]
[373200004,1752903058004,-569.23,0.00018356,2]
[373200005,1752903058013,-460.0,0.00018356,2]
[373200006,1752903058022,-460.0,0.00018356,2]
[373200007,1752903058031,-460.0,0.00018356,2]
[373200008,1752903058041,-1086.82,0.00018356,2]
[373200009,1752903058050,-460.0,0.00018356,2]
[373200010,1752903058059,-460.0,0.00018356,2]
[373200011,1752903058069,-906.52,0.00018356,2]
[373200012,1752903058078,-460.0,0.00018356,2]
[373200013,1752903058088,-460.0,0.00018356,2]
[373200014,1752903058098,-460.0,0.00018356,2]
[373200015,1752903058108,-460.0,0.00018356,2]
[373200016,1752903058119,-3126.57,0.00018356,2]
[373200017,1752903058128,-260.0,0.00018381,2]
[373200018,1752903058139,-4890.36116353,0.00018383,2]
[373200019,1752903058151,-683.41532937,0.00018416,2]
[373200020,1752903058160,-500.0,0.00018428,2]
[373200021,1752903058170,-4890.36116353,0.00018624,2]
[373200022,1752903058186,-460.0,0.0001863,2]
[373200023,1752903058196,-474.64235238,0.0001863,2]
[373200024,1752903058207,-345.82813616,0.0001863,2]
[373200025,1752903058218,-460.0,0.0001863,2]
[373200026,1752903058228,-460.0,0.0001863,2]
[373200027,1752903058239,-151.0,0.0001863,2]
[373200028,1752903058250,-234.571149,0.0001863,2]
[373200029,1752903058261,-151.0,0.0001863,2]
[373200030,1752903058271,-151.0,0.0001863,2]
[373200031,1752903058281,-151.0,0.0001863,2]
[373200032,1752903058291,-460.0,0.0001863,2]
[373200033,1752903058301,-460.0,0.0001863,2]
[373200034,1752903058311,-460.0,0.0001863,2]
[373200035,1752903058320,-200.919079,0.0001863,2]
[373200036,1752903058331,-200.919079,0.0001863,2]
[373200037,1752903058341,-151.0,0.0001863,2]
[373200038,1752903058351,-1074.17,0.0001863,2]
[373200039,1752903058363,-151.0,0.0001863,2]
[373200040,1752903058376,-4435.91,0.0001863,2]
[373200041,1752903058389,-151.0,0.0001863,2]
[373200042,1752903058399,-151.0,0.0001863,2]
[373200043,1752903058410,-151.0,0.0001863,2]
[373200044,1752903058419,-460.0,0.0001863,2]
[373200045,1752903058430,-460.0,0.0001863,2]
[373200046,1752903058439,-460.0,0.0001863,2]
[373200047,1752903058450,-460.0,0.0001863,2]
[373200048,1752903058460,-460.0,0.0001863,2]
[373200049,1752903058469,-266.83211746,0.0001863,2]
[373200050,1752903058479,-460.0,0.0001863,2]
[373200051,1752903058489,-460.0,0.0001863,2]
[373200052,1752903058499,-460.0,0.0001863,2]
[373200053,1752903058508,-1978.9,0.0001863,2]
[373200054,1752903058518,-460.0,0.0001863,2]
[373200055,1752903058527,-460.0,0.0001863,2]
[373200056,1752903058538,-1505.02,0.0001863,2]
[373200057,1752903058547,-460.0,0.0001863,2]
[373200058,1752903058557,-460.0,0.0001863,2]
[373200059,1752903058566,-460.0,0.0001863,2]
[373200060,1752903058576,-460.0,0.0001863,2]
[373200061,1752903058585,-460.0,0.0001863,2]
[373200062,1752903058594,-460.0,0.0001863,2]
[373200063,1752903058603,-460.0,0.0001863,2]
[373200064,1752903058613,-151.80139244,0.0001863,2]
[373200065,1752903058622,-1442.04,0.0001863,2]
[373200066,1752903058632,-428.975799,0.0001863,2]
[373200067,1752903058641,-428.975799,0.0001863,2]
[373200068,1752903058651,-460.0,0.0001863,2]
[373200069,1752903058661,-584.9,0.0001863,2]
[373200070,1752903058671,-633.79,0.0001863,2]
[373200071,1752903058680,-460.0,0.0001863,2]
[373200072,1752903058690,-151.0,0.0001863,2]
[373200073,1752903058699,-2208.01,0.0001863,2]
[373200074,1752903058709,-151.0,0.0001863,2]
[373200075,1752903058718,-2144.38,0.0001863,2]
[373200076,1752903058727,-228.289233,0.0001863,2]
[373200077,1752903058737,-228.289233,0.0001863,2]
[373200078,1752903058746,-460.0,0.0001863,2]
[373200079,1752903058756,-151.0,0.0001863,2]
[373200080,1752903058765,-460.0,0.0001863,2]
[373200081,1752903058774,-151.0,0.0001863,2]
[373200082,1752903058784,-460.0,0.0001863,2]
[373200083,1752903058793,-782.71,0.0001863,2]
[373200084,1752903058803,-1171.09,0.0001863,2]
[373200085,1752903058813,-460.0,0.0001863,2]
[373200086,1752903058823,-1364.49,0.0001863,2]
[373200087,1752903058832,-461.87,0.0001863,2]
[373200088,1752903058840,-583.74,0.0001863,2]
[373200089,1752903058850,-460.0,0.0001863,2]
[373200090,1752903058860,-460.0,0.0001863,2]
[373200091,1752903058869,-460.0,0.0001863,2]
[373200092,1752903058878,-499.35028916,0.0001863,2]
[373200093,1752903058887,-759.08,0.0001863,2]
[373200094,1752903058898,-1623.5,0.0001863,2]
[373200095,1752903058909,-460.0,0.0001863,2]
[373200096,1752903058919,-151.0,0.0001863,2]
[373200097,1752903058929,-151.0,0.0001863,2]
[373200098,1752903058939,-460.0,0.0001863,2]
[373200099,1752903058951,-460.0,0.0001863,2]
[373200100,1752903058962,-309.301731,0.0001863,2]
[373200101,1752903058971,-308.71832558,0.0001863,2]
[373200102,1752903058981,-309.301731,0.0001863,2]
[373200103,1752903058990,-460.0,0.0001863,2]
[373200104,1752903058999,-491.03,0.0001863,2]
[373200105,1752903059008,-460.0,0.0001863,2]
[373200106,1752903059018,-525.35,0.0001863,2]
[373200107,1752903059027,-253.751263,0.0001863,2]
[373200108,1752903059037,-473.37,0.0001863,2]
[373200109,1752903059047,-253.751263,0.0001863,2]
[373200110,1752903059056,-2274.07,0.0001863,2]
[373200111,1752903059065,-460.0,0.0001863,2]
[373200112,1752903059074,-460.0,0.0001863,2]
[373200113,1752903059084,-1301.23,0.0001863,2]
[373200114,1752903059093,-460.0,0.0001863,2]
[373200115,1752903059103,-151.0,0.0001863,2]
[373200116,1752903059112,-3822.72,0.0001863,2]
[373200117,1752903059121,-151.0,0.0001863,2]
[373200118,1752903059131,-151.0,0.0001863,2]
[373200119,1752903059140,-460.0,0.0001863,2]
[373200120,1752903059149,-460.0,0.0001863,2]
[373200121,1752903059158,-569.23,0.0001863,2]
[373200122,1752903059168,-460.0,0.0001863,2]
[373200123,1752903059178,-460.0,0.0001863,2]
[373200124,1752903059188,-460.0,0.0001863,2]
[373200125,1752903059199,-1086.82,0.0001863,2]
[373200126,1752903059208,-460.0,0.0001863,2]
[373200127,1752903059218,-460.0,0.0001863,2]
[373200128,1752903059227,-203.956326,0.0001863,2]
[373200129,1752903059237,-906.52,0.0001863,2]
[373200130,1752903059246,-178.585793,0.0001863,2]
[373200131,1752903059256,-203.956326,0.0001863,2]
[373200132,1752903059266,-460.0,0.0001863,2]
[373200133,1752903059276,-178.585793,0.0001863,2]
[373200134,1752903059287,-1201.486897,0.0001863,2]
[373200135,1752903059297,-287.14175686,0.0001863,2]
[373200136,1752903059308,-1201.486897,0.0001863,2]
[373200137,1752903059317,-460.0,0.0001863,2]
[373200138,1752903059329,-3126.57,0.0001863,2]
[373200139,1752903059340,-800.0,0.00018638,2]
[373200140,1752903059351,-500.0,0.00018659,2]
[373200141,1752903059361,-440.43305097,0.00018659,2]
[373200142,1752903059372,-10957.49312634,0.00018667,2]
[373200143,1752903059382,-500.0,0.00018702,2]
[373200144,1752903059391,-4890.36116353,0.00018866,2]
[373200145,1752903059401,-151.0,0.0001889,2]
[373200146,1752903059410,-151.0,0.0001889,2]
[373200147,1752903059420,-151.0,0.0001889,2]
[373200148,1752903059429,-151.0,0.0001889,2]
[373200149,1752903059439,-410.668745,0.0001889,2]
[373200150,1752903059448,-410.668745,0.0001889,2]
[373200151,1752903059457,-1445.0674579,0.000189,2]
[373200152,1752903059466,-460.0,0.00018904,2]
[373200153,1752903059475,-460.0,0.00018904,2]
[373200154,1752903059484,-460.0,0.00018904,2]
[373200155,1752903059493,-460.0,0.00018904,2]
[373200156,1752903059584,-460.0,0.00018904,2]
[373200157,1752903059594,-1074.17,0.00018904,2]
[373200158,1752903059604,-4435.91,0.00018904,2]
[373200159,1752903059613,-520.3,0.00018904,2]
[373200160,1752903059622,-460.0,0.00018904,2]
[373200161,1752903059632,-460.0,0.00018904,2]
[373200162,1752903059642,-460.0,0.00018904,2]
[373200163,1752903059651,-460.0,0.00018904,2]
[373200164,1752903059660,-460.0,0.00018904,2]
[373200165,1752903059670,-460.0,0.00018904,2]
[373200166,1752903059679,-460.0,0.00018904,2]
[373200167,1752903059689,-1978.9,0.00018904,2]
[373200168,1752903059698,-460.0,0.00018904,2]
[373200169,1752903059708,-460.0,0.00018904,2]
[373200170,1752903059718,-1505.02,0.00018904,2]
[373200171,1752903059728,-460.0,0.00018904,2]
[373200172,1752903059737,-431.4586869,0.00018904,2]
[373200173,1752903059747,-460.0,0.00018904,2]
[373200174,1752903059757,-460.0,0.00018904,2]
[373200175,1752903059766,-460.0,0.00018904,2]